Cogmind - Beta 16 @@@ ROGUE MODE // 2025.11.25 @ 17:22:57 Player: Skysub Result: Destroyed by G-47 Trooper with Particle Gun Performance ------------- Evolutions (2) 1000 Regions Visited (3) 600 Robots Destroyed (1) 5 Value Destroyed (25) 25 Prototype IDs (0) 0 Alien Tech Used (0) 0 Bonus (470) 470 TOTAL SCORE: 2100 Bonus ------- Pacifist 470 Cogmind --------- Core Integrity 0/550 Matter 290/300 Energy 98/100 System Corruption 0% Temperature Cool (18) Movement Core (50) Location -8/Materials Parts ------- > --- POWER (2) -------- (None) > --- PROPULSION (4) --- (None) > --- UTILITY (3) ------ Hacking Suite > --- WEAPON (2) ------- (None) > --- INVENTORY (5) ---- Light Deuterium Engine Light Deuterium Engine Cooling System Disposable Heat Sink Hammer Peak State ------------ > --- POWER ------------ Light Ion Engine > --- PROPULSION ------- Improved Hover Unit Improved Hover Unit Improved Hover Unit > --- UTILITY ---------- Disposable Heat Sink Hacking Suite > --- WEAPON ----------- Hammer > --- INVENTORY -------- Light Deuterium Engine Light Deuterium Engine Cooling System [Rating: 13] Favorites ----------- Power Light Ion Engine Engine Light Ion Engine Propulsion Improved Hover Unit Hover Unit Improved Hover Unit Utility Hacking Suite Device Disposable Heat Sink Hackware Hacking Suite Weapon Hammer Impact Weapon Hammer Build | -11 -10 -9 -8 ------- Run | Yrd Mat Mat Mat Slots Evolved 4 | . . 2 2 Power 1 | . . . 1 Propulsion 2 | . . 1 1 Utility 1 | . . 1 . Weapon . | . . . . Parts Attached 9 | . 4 3 2 Power 1 | . 1 . . Engine 1 | . 1 . . Core . | . . . . Reactor . | . . . . Propulsion 5 | . 2 2 1 Treads . | . . . . Leg . | . . . . Wheel . | . . . . Hover 5 | . 2 2 1 Flight . | . . . . Utility 2 | . . 1 1 Device 1 | . . 1 . Storage . | . . . . Processor . | . . . . Hackware 1 | . . . 1 Protection . | . . . . Artifact . | . . . . Weapon 1 | . 1 . . Energy Gun . | . . . . Energy Cannon . | . . . . Ballistic Gun . | . . . . Ballistic Cannon . | . . . . Launcher . | . . . . Special Weapon . | . . . . Impact Weapon 1 | . 1 . . Slashing Weapon . | . . . . Piercing Weapon . | . . . . Special Melee Weapon . | . . . . Unidentified Prototypes . | . . . . Parts Lost 6 | . . 1 5 Power 1 | . . . 1 Propulsion 5 | . . 1 4 Utility . | . . . . Weapon . | . . . . Highest Loss Streak 4 | . . 1 4 To Critical Strikes . | . . . . Average Backups 2 | . 1 1 3 Power 1 | . . . 2 Propulsion . | . 1 1 . Utility . | . . . 1 Weapon . | . . . . Tool/Special . | . . . . Unused Backups 3 | . . . 3 Power 2 | . . . 2 Propulsion . | . . . . Utility 1 | . . . 1 Weapon . | . . . . Tool/Special . | . . . . Average Slot Usage (%) 38 | . 30 57 30 Engine 6 | . 8 11 2 Hover 18 | . 17 29 9 Device 3 | . . 5 4 Hackware 3 | . . . 7 Impact Weapon 7 | . 3 11 6 Peak Build Rating 13 | . 6 10 13 Average Rating 6 | . 4 8 7 On Entrance 4 | . . 6 10 Avg Prop Armor Cover (%) . | . . . . Naked Turns 15 | . 15 . . Heaviest Build 6 | . 5 6 6 Greatest Support 24 | 3 14 21 24 Greatest Overweight (x) . | . . . . Average Overweight (x) . | . . . . Largest Inventory Capacity 5 | 5 5 5 5 Average Capacity 5 | 5 5 5 5 Most Carried 5 | 1 3 3 5 Average Carried 2 | . 1 1 3 Final Capacity 5 | 5 5 5 5 Final Carried 5 | 1 2 3 5 Class Distribution -------------------- 100% | Mutant Dominant Class ---------------- Mutant | -10/Materials Mutant | -9/Materials Mutant | -8/Materials Resources | -11 -10 -9 -8 ----------- Run | Yrd Mat Mat Mat Matter Collected 265 | 200 40 . 25 Remotely . | . . . . Salvage Created 25 | . . . 25 Parts . | . . . . Haulers Intercepted . | . . . . Recyclers Shooed . | . . . . Parts Field Recycled . | . . . . Retrieved Matter . | . . . . Parts Self-Destructed . | . . . . Prevented . | . . . . Parts Restored . | . . . . Kills | -11 -10 -9 -8 ------- Run | Yrd Mat Mat Mat Combat Hostiles Destroyed . | . . . . Classes Destroyed 1 | . . . 1 Watcher 1 | . . . 1 Best Kill Streak 1 | . . . 1 Combat Bots Only . | . . . . Max Kills in Single Turn 1 | . . . 1 Gunslinging . | . . . . Exploded . | . . . . Melee . | . . . . Uniques/NPCs Destroyed . | . . . . Combat | -11 -10 -9 -8 -------- Run | Yrd Mat Mat Mat Hostile Shots Fired 107 | . 5 35 67 Missed 41 | . 1 20 20 Hits 66 | . 4 15 47 Projectile 66 | . 4 15 47 Critical Strikes 1 | . . . 1 Damage Taken 886 | . 43 124 719 Core 578 | . . 19 559 Absorbed by Shields . | . . . . Core Remaining (%) 98 | 100 100 95 . Volleys Fired . | . . . . Largest . | . . . . Hottest . | . . . . Shots Fired . | . . . . Gun . | . . . . Cannon . | . . . . Launcher . | . . . . Special . | . . . . Kinetic . | . . . . Thermal . | . . . . Explosive . | . . . . Electromagnetic . | . . . . Robot Hit Streak . | . . . . Robot Miss Streak . | . . . . Penetration Max . | . . . . Secondary Targets . | . . . . Shots Hit Robots 2 | . . . 2 Core Hits . | . . . . Critical Kills . | . . . . Critical Parts Destroyed 1 | . . . 1 Critical Strikes 1 | . . . 1 Smash 1 | . . . 1 Melee Attacks 4 | . . . 4 Impact 4 | . . . 4 Slashing . | . . . . Piercing . | . . . . Sneak Attacks 1 | . . . 1 Combat Hostiles . | . . . . Follow-up Attacks . | . . . . Damage Inflicted 61 | . . . 61 Guns . | . . . . Cannons . | . . . . Explosions . | . . . . Melee 61 | . . . 61 Ramming . | . . . . Kinetic . | . . . . Thermal . | . . . . Explosive . | . . . . Electromagnetic . | . . . . Impact 61 | . . . 61 Slashing . | . . . . Piercing . | . . . . Highest Corruption . | . . . . Average Corruption . | . . . . Corruption Purged . | . . . . Corruption Blocked . | . . . . Overload Shots . | . . . . Overflow Damage 31 | . . . 31 Projectiles . | . . . . Explosions . | . . . . Melee 31 | . . . 31 Knockbacks . | . . . . Impact . | . . . . Kinetic . | . . . . Secondary . | . . . . Self-Inflicted Damage . | . . . . Shots . | . . . . Rammed . | . . . . Targets Rammed . | . . . . Kicked . | . . . . Crushed . | . . . . Highest Temperature 5 | . . . 5 Average Temperature 5 | . . . 5 Received Heat Transfer 348 | . 24 9 315 Siege Activations . | . . . . Martial Activations . | . . . . Shielding Activations . | . . . . Robots Disrupted . | . . . . Combat Hostiles . | . . . . Robots Corrupted 1 | . . . 1 Combat Hostiles . | . . . . Parts Fried 2 | . . . 2 Impact Corruptions 2 | . . . 2 Robots Melted . | . . . . Combat Hostiles . | . . . . Parts Melted . | . . . . Heat Transferred . | . . . . Parts Sabotaged . | . . . . Parts Stolen . | . . . . Parts Stripped . | . . . . Power Chain Reactions . | . . . . Alert | -11 -10 -9 -8 ------- Run | Yrd Mat Mat Mat Maximum Alert Level . | . . . . Low Security (%) 100 | 100 100 100 100 Level 1 . | . . . . Level 2 . | . . . . Level 3 . | . . . . Level 4 . | . . . . Level 5 . | . . . . High Security . | . . . . Max Security . | . . . . Peak Influence 38 | . 6 . 38 Initial . | . . . . Average 1 | . 1 . 2 Influence Increases 52 | . 6 . 46 Destroy 0b10 Robot/NC 5 | . . . 5 Destroy Leader 2 | . . . 2 Successful Hack 14 | . 6 . 8 Destroy Structure 1 | . . . 1 Lose Combat Pursuer 30 | . . . 30 Influence Decreases 24 | . 6 . 18 Time Decay 17 | . 6 . 11 Lost Part 7 | . . . 7 Squads Dispatched 5 | . 1 2 2 Investigation 3 | . 1 1 1 Extermination . | . . . . Reinforcement 2 | . . 1 1 Assault . | . . . . Garrison . | . . . . Intercept . | . . . . Searches Triggered . | . . . . Construction Impeded 1 | . . . 1 Haulers Reinforced . | . . . . Active Scanning Responses . | . . . . Cargo Convoy Interrupts . | . . . . Stealth | -11 -10 -9 -8 --------- Run | Yrd Mat Mat Mat Distress Signals 1 | . . . 1 Communications Jammed . | . . . . Distress Signals . | . . . . Times Spotted 37 | . 3 11 23 Peak Tracking Total 20 | . 2 10 20 Tactical Retreats 1 | . . . 1 Traps | -11 -10 -9 -8 ------- Run | Yrd Mat Mat Mat Traps Triggered . | . . . . Indirectly . | . . . . Trap Hack Attempts . | . . . . Triggered . | . . . . Disarmed . | . . . . Reprogrammed . | . . . . Reused . | . . . . Traps Extracted . | . . . . Installed . | . . . . Triggered . | . . . . Machines | -11 -10 -9 -8 ---------- Run | Yrd Mat Mat Mat Machines Disabled . | . . . . Max in Single Turn . | . . . . Machines Repaired . | . . . . Machines Dismantled . | . . . . Machines Sabotaged . | . . . . Overloaded Fab Kills . | . . . . Hacking | -11 -10 -9 -8 --------- Run | Yrd Mat Mat Mat Machines Accessed 6 | . 1 2 3 Terminals 5 | . 1 2 2 Fabricators . | . . . . Repair Stations . | . . . . Recycling Units . | . . . . Scanalyzers 1 | . . . 1 Garrison Access . | . . . . Total Hacks 15 | . 4 4 7 Successful 3 | . 1 . 2 Failed 11 | . 3 4 4 Catastrophic 7 | . 1 3 3 Database Lockouts 1 | . . . 1 Manual 12 | . 4 4 4 Terminals 12 | . 4 4 4 Fabricators . | . . . . Repair Stations . | . . . . Recycling Units . | . . . . Scanalyzers 3 | . . . 3 Garrison Access . | . . . . Terminal Hacks 1 | . . . 1 Level Access Points 1 | . . . 1 Fabricator Hacks . | . . . . Repair Station Hacks . | . . . . Recycling Unit Hacks . | . . . . Scanalyzer 1 | . . . 1 Retrieve Study 1 | . . . 1 Garrison Access Hacks . | . . . . Unauthorized Hacks 1 | . 1 . . Terminals 1 | . 1 . . Assimilate 1 | . 1 . . Fabricators . | . . . . Repair Stations . | . . . . Recycling Units . | . . . . Scanalyzers . | . . . . Garrison Access . | . . . . Data Cores Recovered . | . . . . Used . | . . . . Hacking Detections 6 | . 1 2 3 Full Trace Events 3 | . 1 1 1 Feedback Events . | . . . . Feedback Blocked . | . . . . Robot Schematics Acquired . | . . . . Robots Built . | . . . . Authchips . | . . . . Time . | . . . . Total Robot Build Rating . | . . . . Part Schematics Acquired . | . . . . Parts Built . | . . . . Authchips . | . . . . Time . | . . . . Total Part Build Rating . | . . . . Part Studies Acquired 1 | . . . 1 Parts Repaired . | . . . . Time . | . . . . Parts Recycled . | . . . . Recycled Matter . | . . . . Retrieved Matter . | . . . . Retrieved Components . | . . . . Parts Scanalyzed . | . . . . Part Schematics Acquired . | . . . . Parts Damaged . | . . . . Bothacking | -11 -10 -9 -8 ------------ Run | Yrd Mat Mat Mat Used RIF Installer . | . . . . Robots Hacked . | . . . . Non-combat . | . . . . Combat . | . . . . Robot Hacks Applied . | . . . . Relay Couplers Released . | . . . . Fabnet Peak Effective % . | . . . . Robots Rewired . | . . . . Allies Hacked . | . . . . Hacks Repelled . | . . . . Allies | -11 -10 -9 -8 -------- Run | Yrd Mat Mat Mat Total Allies 1 | . 1 . . Largest Group 1 | . 1 . . Highest-Rated Group 10 | . 10 . . Highest-Rated Ally 10 | . 10 . . Total Orders . | . . . . Ally Attacks . | . . . . Total Damage . | . . . . Kills . | . . . . Allies Corrupted . | . . . . Allies Melted . | . . . . Intel | -11 -10 -9 -8 ------- Run | Yrd Mat Mat Mat Active Infowar (turns) . | . . . . Robot Analysis Total . | . . . . Derelict Logs Recovered . | . . . . Drone Launches . | . . . . Drone Recoveries . | . . . . Exploration | -11 -10 -9 -8 ------------- Run | Yrd Mat Mat Mat Turns Passed 297 | 14 72 87 124 Spaces Moved 491 | 25 114 151 201 Core 152 | 25 24 . 103 Treads . | . . . . Legs . | . . . . Wheels . | . . . . Hover 339 | . 90 151 98 Flight . | . . . . Fastest Speed 50 | 50 50 52 50 Average Speed 53 | 50 54 53 53 Slowest Speed 60 | 50 60 56 60 Overloaded Moves . | . . . . Propulsion Burnouts . | . . . . Robots Hopped . | . . . . Potential Cave-ins . | . . . . Cave-ins Triggered . | . . . . Exploration Rate (%) 21 | 3 33 22 27 Regions Visited 3 Branch Regions . Pre-discovered Areas . | . . . . Known Exits Taken . | . . . . Unknown Exits Taken 3 | 1 1 1 . Scrap Searched . | . . . . Spaces Dug 1 | . . . 1 Terrain Destroyed 1 | . . . 1 Melee 1 | . . . 1 Projectile . | . . . . AOE . | . . . . Terrain Rammed . | . . . . Walls Destroyed . | . . . . Machines Disabled . | . . . . Actions | -11 -10 -9 -8 --------- Run | Yrd Mat Mat Mat Total 513 | 25 121 156 211 Wait 2 | . 2 . . Move 488 | 24 113 150 201 Hop . | . . . . Pick Up 6 | 1 2 3 . Fast Attach 6 | . 3 1 2 Attach 4 | . 1 2 1 Detach 3 | . . . 3 Swap . | . . . . Drop . | . . . . Fire . | . . . . Melee 4 | . . . 4 Ram . | . . . . Kick . | . . . . Crush . | . . . . Escape Stasis . | . . . . Rewire . | . . . . Trap . | . . . . Miscellaneous . | . . . . Route ------- -11/Scrapyard -10/Materials -9/Materials -8/Materials (discovered 3 exits: *Fac x3) History --------- Turn | Location | Event 3 | -11/Scrapyard | Discovered new exit (range 15) 15 | -11/Scrapyard | Entered Materials 78 | -10/Materials | Discovered new exit (range 15) 87 | -10/Materials | Entered another Materials area 87 | -9/Materials | Evolved 2 slots: Propulsion x1, Utility x1 162 | -9/Materials | Discovered new exit (range 15) 174 | -9/Materials | Entered another Materials area 174 | -8/Materials | Evolved 2 slots: Power x1, Propulsion x1 185 | -8/Materials | Central database locked down 234 | -8/Materials | Lost 4 parts (1p3n) 273 | -8/Materials | Core integrity fell below 50% 286 | -8/Materials | Identified exit to Factory 292 | -8/Materials | Core integrity fell below 20% 298 | -8/Materials | Destroyed by G-47 Trooper with Particle Gun Last Messages --------------- 00246_ K-01 Serf collects debris. 00266_ Critical hit (Burn: +37). 00268_ Sneak attack on U-05 Engineer. 00268_ Destroyed Welding Torch. 00268_ U-05 Engineer system corrupted by crushing effect. 00268_ ALERT: Construction progress impeded, dispatching reinforcements to local area. 00274_ Airjet destroyed. 00286_ Connecting with Terminal... >>Access(Main) Found 3 level access points to Factory: (54,87) (52,10) (93,47) Map updated. 00289_ K-01 Serf collects debris. 00291_ Pressure Siphon disabled. 00291_ G-50 Soldier suffers critical hit (Burn). 00292_ K-01 Serf cleans the Terminal. 00294_ W-25 Informer sends out distress signal. Map ----- +----------------------------------------------------+ | | | | | | | | | | | | | ?????????????????????????????????????????????????? | | ?????????????????????????????????????????????????? | | ?????????????????????????????????????????????????? | | ?????????????????????????????????????????????????? | | ?????????????????????????????????????????????????? | | ?????????????????????????????????????????????????? | | ?????????????????????????????????????????????????? | | ?????????????????????????????????????????????????? | | ?????????????????????????####????????????????????? | | ????????????????????????? #????????????????????? | | ????????????????????????? < #????????????????????? | | ????????????????????????# #????????????????????? | | ????????????????????????Y #????????????????????? | | ????????????????????????# #????????????????????? | | ????????????????????????# +????????????????????? | | ????????????????????????# #????????????????????? | | ?????????######?????????# #????????????????????? | | ?????????!! #?????????# #????????????????????? | | ?????????!! #?????????# #????????????????????? | | ????????!!! #??########@ #????????????????????? | | ???????? #??# #????????????????????? | | ???????? ! #??# #????????????????????? | | ???????? #??# g #????????????????????? | | ??????? ! ????# g########????????????????????? | | ??????? ?????# #???????????????????????????? | | ??????? ???????# #???"#??????????????????????? | | #######+########## ##"T"###"T"?????????????????? | | ??????????????? | | [ ??????????????? | | ??????????????? | | ###### """" %""" """" ???????????????? | | ???#"" """" """" """"???????????????????? | | ???#"T """" """" """????????????????????? | | ???#"" ????????????????????? | | ???### ??????????????????? | | ?????# ??????????????????? | | ?????# ! ?????????????????? | | ?????# ??????????????????? | | ?????###+############### ??????????????????? | | ???????????????????????? T ???????????????????? | | ????????????????????????? ????????????????????? | | ?????????????????????????? ??????????????????????? | | ?????????????????????????????????????????????????? | | ?????????????????????????????????????????????????? | +----------------------------------------------------+ Best States ------------- Heat Dissipation 31 Coolant Potential 50 Energy Generation 10 Energy Capacity 125 Matter Stores 300 Matter Capacity 300 Sight Range 16 Terrain Scan Density 10 Evasion (%) 54 Offensive Hacking 10 Item Schematics ----------------- None Robot Schematics ------------------ None Fabricated ------------ Nothing Repaired ---------- Nothing Studied --------- Imp. Hover Unit | -8/Materials | Hacked Alien Tech Used ----------------- None Achievements -------------- None Challenges ------------ None Game ------ Seed MetaZeronetManipulator Manual? 0 Play Time 00:06:45 Cumulative 284.3 hours Start 2025.11.25 @ 17:18:16 End 2025.11.25 @ 17:22:57 Sessions 1 Manual Loads 0 Difficulty Rogue Special Mode None Game No. 307 Rogue 307 Adventurer 0 Explorer 0 Win Type - Total 12 Types 5/0/3/1/1/0/0/1/0/1 Lore% 77 Gallery% 75 Achievement% 56 Wizard Run 0 Options --------- Layout 1 ASCII 0 Keyboard 1 Movement Numpad Keybinds 0 Fullscreen 2 Font 32/SmallcapsGlow Map View 77x35 Zoom Use 0% Tactical HUD 1 Map Filters NONE Filters NONE Steam 1 RUN: 807acb9b-5db8-4e1b-bc82-3a500175ce5d